Workbook

Sheet Старт
B1: ЗА ТОЗИ ШАБЛОН
B2: Използвайте този Анализ на рентабилността на клиентите за проследяване на Дейност на клиентите, Разходи за продажбите и Други разходи.
B3: Попълнете информацията като име на фирма и дата и подробните данни в таблиците.
B4: Стойностите в клетките, съдържащи формули, и таблицата "Обобщени метрики" се изчисляват автоматично, а диаграмата се актуализира.
B5: Забележка:
B6: Допълнителни инструкции са предоставени в колона A в работния лист РЕНТАБИЛНОСТ НА КЛИЕНТИТЕ. Този текст е скрит нарочно. За да премахнете текста, изберете колона А, след което изберете DELETE. За да покажете текст, изберете колона A, след което променете цвета на шрифта.
B7: За да научите повече за таблиците в този работен лист, натиснете SHIFT и след това F10 в таблица, изберете опцията ТАБЛИЦА, след което изберете АЛТЕРНАТИВЕН ТЕКСТ.

Sheet Рентабилност на клиентите
A1: Създайте Анализ на рентабилността на клиентите в този работен лист. Полезни инструкции как да използвате този работен лист, можете да намерите в клетките в тази колона. Натиснете стрелката надолу, за да започнете.
A2: Въведете Име на фирма в клетката отдясно. | B2: Име на фирма
A3: Заглавието на този работен лист е в клетката отдясно. | B3: Анализ на рентабилността на клиентите
A4: Въведете дата в клетката отдясно. | B4: Дата
A5: Съветът е в клетката отдясно. | B5: Сивите клетки ще бъдат изчислени автоматично. Не трябва да въвеждате нищо в тях.
A6: Въведете подробности в таблицата "Дейност на клиентите", като започнете от клетката вдясно. Следващата инструкция е в клетка A12. | B6: Дейност на клиентите: | C6: Име на сегмент 1 | D6: Име на сегмент 2 | E6: Име на сегмент 3 | F6: Общо
B7: Брой на активните клиенти – в началото на периода | C7: 5 | D7: 8 | E7: 8 | F7: =SUM(C7:E7) -> 21
B8: Брой на добавените клиенти | C8: 2 | D8: 4 | E8: 4 | F8: =SUM(C8:E8) -> 10
B9: Брой на загубените/прекратените клиенти | C9: -1 | D9: -2 | E9: -2 | F9: =SUM(C9:E9) -> -5
B10: Брой на активните клиенти – в края на периода | C10: =SUBTOTAL(109,ДейностНаКлиентите[Име на сегмент 1]) -> 6 | D10: =SUBTOTAL(109,ДейностНаКлиентите[Име на сегмент 2]) -> 10 | E10: =SUBTOTAL(109,ДейностНаКлиентите[Име на сегмент 3]) -> 10 | F10: =SUBTOTAL(109,ДейностНаКлиентите[Общо]) -> 26
A12: Въведете подробности в таблицата "Анализ на рентабилността", като започнете от клетката вдясно. Следващата инструкция е в клетка A16. | B12: Анализ на рентабилността: | C12: Име на сегмент 1 | D12: Име на сегмент 2 | E12: Име на сегмент 3 | F12: Общо
B13: Печалба на сегмент | C13: 1,500,000.00 лв. | D13: 1,800,000.00 лв. | E13: 2,500,000.00 лв. | F13: =SUM(АнализНаРентабилността[[#This Row],[Име на сегмент 1]:[Име на сегмент 3]]) -> 5,800,000.00 лв.
B14: Тежест | C14: =+C13/$F$13 -> 26% | D14: =+D13/$F$13 -> 31% | E14: =+E13/$F$13 -> 43% | F14: =SUM(АнализНаРентабилността[[#This Row],[Име на сегмент 1]:[Име на сегмент 3]]) -> 100%
A16: Въведете подробности в таблицата "Разходи за продажбите", като започнете от клетката вдясно. Следващата инструкция е в клетка A23. | B16: Разходи за продажбите: | C16: Име на сегмент 1 | D16: Име на сегмент 2 | E16: Име на сегмент 3 | F16: Общо
B17: Текущи разходи за обслужване и поддръжка | C17: 1,000,000.00 лв. | D17: 1,400,000.00 лв. | E17: 1,400,000.00 лв. | F17: =SUM(C17:E17) -> 3,800,000.00 лв.
B18: Други директни разходи за клиента | C18: 200,000.00 лв. | D18: 100,000.00 лв. | E18: 100,000.00 лв. | F18: =SUM(C18:E18) -> 400,000.00 лв.
B19: Общо разходи за продажбите | C19: =SUM(C17:C18) -> 1,200,000.00 лв. | D19: =SUM(D17:D18) -> 1,500,000.00 лв. | E19: =SUM(E17:E18) -> 1,500,000.00 лв. | F19: =SUM(F17:F18) -> 4,200,000.00 лв.
B20: Брутна печалба | C20: =+C13-C19 -> 300,000.00 лв. | D20: =+D13-D19 -> 300,000.00 лв. | E20: =+E13-E19 -> 1,000,000.00 лв. | F20: =+F13-F19 -> 1,600,000.00 лв.
B21: Тежест | C21: =MAX(0, MIN(1,C20/$F$20)) -> 19% | D21: =MAX(0, MIN(1,D20/$F$20)) -> 19% | E21: =MAX(0, MIN(1,E20/$F$20)) -> 63% | F21: =SUM(C21:E21) -> 100%
A23: Въведете подробности в таблицата "Други разходи", като започнете от клетката вдясно. Следващата инструкция е в клетка A31. | B23: Други разходи: | C23: Име на сегмент 1 | D23: Име на сегмент 2 | E23: Име на сегмент 3 | F23: Общо
B24: Привличане на клиенти | C24: 105,000.00 лв. | D24: 120,000.00 лв. | E24: 235,000.00 лв. | F24: =SUM(ДругиРазходи[[#This Row],[Име на сегмент 1]:[Име на сегмент 3]]) -> 460,000.00 лв.
B25: Маркетинг за клиентите | C25: 150,000.00 лв. | D25: 125,000.00 лв. | E25: 275,000.00 лв. | F25: =SUM(C25:E25) -> 550,000.00 лв.
B26: Прекратяване на клиенти | C26: 80,000.00 лв. | D26: 190,000.00 лв. | E26: 140,000.00 лв. | F26: =SUM(C26:E26) -> 410,000.00 лв.
B27: Общо други разходи за клиента | C27: =SUM(C24:C26) -> 335,000.00 лв. | D27: =SUM(D24:D26) -> 435,000.00 лв. | E27: =SUM(E24:E26) -> 650,000.00 лв. | F27: =SUM(F24:F26) -> 1,420,000.00 лв.
B28: Печалба от клиентите по сегмент | C28: =+C20-C27 -> -35,000.00 лв. | D28: =+D20-D27 -> -135,000.00 лв. | E28: =+E20-E27 -> 350,000.00 лв. | F28: =SUM(C28:E28) -> 180,000.00 лв.
B29: Тежест | C29: =MAX(0,MIN(1, C28/$F$28)) -> 0% | D29: =MAX(0,MIN(1, D28/$F$28)) -> 0% | E29: =MAX(0,MIN(1, E28/$F$28)) -> 100% | F29: =SUM(C29:E29) -> 100%
A31: Таблица "Обобщени метрики", започваща от клетката вдясно, се актуализира автоматично. Следващата инструкция е в клетка A37. | B31: Обобщени метрики: | C31: Име на сегмент 1 | D31: Име на сегмент 2 | E31: Име на сегмент 3 | F31: Тенденция
B32: Средно разходи за придобит клиент | C32: =+C24/C8 -> 52,500.00 лв. | D32: =+D24/D8 -> 30,000.00 лв. | E32: =+E24/E8 -> 58,750.00 лв.
B33: Средно разходи за прекратен клиент | C33: =-C26/C9 -> 80,000.00 лв. | D33: =-D26/D9 -> 95,000.00 лв. | E33: =-E26/E9 -> 70,000.00 лв.
B34: Средно разходи за маркетинг за активен клиент | C34: =+C26/ДейностНаКлиентите[[#Totals],[Име на сегмент 1]] -> 13,333.33 лв. | D34: =+D25/ДейностНаКлиентите[[#Totals],[Име на сегмент 2]] -> 12,500.00 лв. | E34: =+E25/ДейностНаКлиентите[[#Totals],[Име на сегмент 3]] -> 27,500.00 лв.
B35: Средната печалба (загуба) за клиент | C35: =+C29/ДейностНаКлиентите[[#Totals],[Име на сегмент 1]] -> 0.00 лв. | D35: =+D28/ДейностНаКлиентите[[#Totals],[Име на сегмент 2]] -> -13,500.00 лв. | E35: =+E28/ДейностНаКлиентите[[#Totals],[Име на сегмент 3]] -> 35,000.00 лв.
A37: Колонната диаграма с клъстери, показваща "Обобщени метрики за клиентски сегмент", е в клетката вдясно. | B37: Колонната диаграма с клъстери, показваща "Обобщени метрики за клиентски сегмент", е в тази клетка.
